fUSD/lending_fUSD_20260111
["ID","MTS","AMOUNT","RATE_DAILY","PERIOD"]
[401374024,1768163451722,-173.624464,0.00017985,2]
[401374025,1768163451735,-239.21511141,0.00017985,2]
[401374026,1768163451748,-209.335212,0.00017985,2]
[401374027,1768163451759,-173.624464,0.00017985,2]
[401374028,1768163451772,-165.572138,0.00017985,2]
[401374029,1768163451786,-209.335212,0.00017985,2]
[401374030,1768163451801,-1866.961288,0.00017985,2]
[401374031,1768163451811,-173.624464,0.00017985,2]
[401374032,1768163451822,-165.572138,0.00017985,2]
[401374033,1768163451834,-1866.961288,0.00017985,2]
[401374034,1768163451848,-165.572138,0.00017985,2]
[401374035,1768163451861,-196.746434,0.00017985,2]
[401374036,1768163451873,-1866.961288,0.00017985,2]
[401374037,1768163451884,-573.970445,0.00017985,2]
[401374038,1768163451895,-2235.751841,0.00017985,2]
[401374039,1768163451907,-196.746434,0.00017985,2]
[401374040,1768163451920,-1866.961288,0.00017985,2]
[401374041,1768163451932,-573.970445,0.00017985,2]
[401374042,1768163451943,-2235.751841,0.00017985,2]
[401374043,1768163451954,-196.746434,0.00017985,2]
[401374044,1768163451966,-573.970445,0.00017985,2]
[401374045,1768163451979,-2235.751841,0.00017985,2]
[401374046,1768163451991,-196.746434,0.00017985,2]
[401374047,1768163452003,-573.970445,0.00017985,2]
[401374048,1768163452015,-2235.751841,0.00017985,2]
[401374049,1768163452027,-2068.70979,0.00017985,2]
[401374050,1768163452046,-2068.70979,0.00017985,2]
[401374051,1768163452061,-2068.70979,0.00017985,2]
[401374052,1768163452077,-921.834081,0.00017985,2]
[401374053,1768163452091,-2068.70979,0.00017985,2]
[401374054,1768163452104,-921.834081,0.00017985,2]
[401374055,1768163452118,-921.834081,0.00017985,2]
[401374056,1768163452131,-921.834081,0.00017985,2]
[401374057,1768163452145,-542.914314,0.00017985,2]
[401374058,1768163452158,-542.914314,0.00017985,2]
[401374059,1768163452172,-433.930046,0.00017985,2]
[401374060,1768163452185,-542.914314,0.00017985,2]
[401374061,1768163452199,-433.930046,0.00017985,2]
[401374062,1768163452213,-438.857825,0.00017985,2]
[401374063,1768163452226,-542.914314,0.00017985,2]
[401374064,1768163452239,-433.930046,0.00017985,2]
[401374065,1768163452252,-438.857825,0.00017985,2]
[401374066,1768163452267,-438.857825,0.00017985,2]
[401374067,1768163452279,-438.857825,0.00017985,2]
[401374068,1768163452291,-382.764866,0.00017985,2]
[401374069,1768163452312,-433.930046,0.00017985,2]
[401374070,1768163452324,-382.764866,0.00017985,2]
[401374071,1768163452338,-382.764866,0.00017985,2]
[401374072,1768163452352,-382.764866,0.00017985,2]
[401374073,1768163452365,-1089.522056,0.00017985,2]
[401374074,1768163452378,-151.0,0.00017985,2]
[401374075,1768163452391,-151.0,0.00017985,2]
[401374076,1768163452403,-1089.522056,0.00017985,2]
[401374077,1768163452415,-151.0,0.00017985,2]
[401374078,1768163452428,-1089.522056,0.00017985,2]
[401374079,1768163452440,-151.0,0.00017985,2]
[401374080,1768163452452,-275.980319,0.00017985,2]
[401374081,1768163452465,-151.0,0.00017985,2]
[401374082,1768163452477,-1089.522056,0.00017985,2]
[401374083,1768163452489,-169.722858,0.00017985,2]
[401374084,1768163452500,-506.865865,0.00017985,2]
[401374085,1768163452512,-199.832252,0.00017985,2]
[401374086,1768163452524,-151.0,0.00017985,2]
[401374087,1768163452536,-275.980319,0.00017985,2]
[401374088,1768163452549,-151.0,0.00017985,2]
[401374089,1768163452561,-506.865865,0.00017985,2]
[401374090,1768163452572,-199.832252,0.00017985,2]
[401374091,1768163452584,-275.980319,0.00017985,2]
[401374092,1768163452596,-151.0,0.00017985,2]
[401374093,1768163452608,-151.0,0.00017985,2]
[401374094,1768163452619,-151.0,0.00017985,2]
[401374095,1768163452631,-506.865865,0.00017985,2]
[401374096,1768163452643,-275.980319,0.00017985,2]
[401374097,1768163452655,-199.832252,0.00017985,2]
[401374098,1768163452667,-151.0,0.00017985,2]
[401374099,1768163452679,-151.0,0.00017985,2]
[401374100,1768163452691,-506.865865,0.00017985,2]
[401374101,1768163452703,-199.832252,0.00017985,2]
[401374102,1768163452715,-364.05538,0.00017985,2]
[401374103,1768163452727,-151.0,0.00017985,2]
[401374104,1768163452739,-1504.84669514,0.0001799,2]
[401374105,1768163452751,-150.0,0.0001799,2]
[401374106,1768163452763,-1204.07094394,0.0001799,2]
[401374107,1768163452775,-1204.07094394,0.0001799,2]
[401374108,1768163452787,-500.0,0.00017998,2]
[401374109,1768163452799,-642.94,0.00017998,2]
[401374110,1768163452811,-334.5472959,0.00017998,2]
[401374111,1768163452823,-166.9455236,0.00017999,2]
[401374112,1768163452835,-1109.1708325,0.00017999,5]
[401374113,1768163452847,-300.0,0.00017999,2]
[401374114,1768163452859,-300.0,0.00017999,2]
[401374115,1768163452871,-300.0,0.00017999,2]
[401374116,1768163452883,-6474.7929339,0.00017999,2]
[401374117,1768163452894,-300.0,0.00017999,2]
[401374118,1768163452906,-673.04563665,0.00017999,2]
[401374119,1768163452923,-2167.0,0.00018,2]
[401374120,1768163452937,-250.0,0.00018,2]
[401374121,1768163452951,-150.0,0.00018,2]
[401374122,1768163452965,-150.0,0.00018,2]
[401374123,1768163452978,-150.0,0.00018,2]
[401374124,1768163452993,-150.0,0.00018,2]
[401374125,1768163453005,-150.0,0.00018,2]
[401374126,1768163453017,-150.00000001,0.00018,2]
[401374127,1768163453031,-150.0,0.00018,2]
[401374128,1768163453045,-150.4343184,0.00018,2]
[401374129,1768163453059,-178.176763,0.00018,2]
[401374130,1768163453071,-150.0,0.00018,2]
[401374131,1768163453084,-150.37867968,0.00018,2]
[401374132,1768163453097,-150.0,0.00018,2]
[401374133,1768163453111,-501.77065485,0.00018,2]
[401374134,1768163453125,-150.0,0.00018,2]
[401374135,1768163453138,-247.12115075,0.00018,2]
[401374136,1768163453151,-1400866.62597813,0.00018,2]
[401374137,1768163453164,-150.0,0.00018,2]
[401374138,1768163453176,-5220.0743838,0.00018,2]
[401374139,1768163453189,-150.0,0.00018,2]
[401374140,1768163453201,-16412.11173364,0.00018,2]
[401374141,1768163453214,-150.0,0.00018,2]
[401374142,1768163453227,-3467.73040028,0.00018,2]
[401374143,1768163453241,-131107.170514,0.00018,2]
[401374144,1768163454660,-910.1,0.00018,2]
[401374145,1768163455402,-1.7e-07,0.00018,2]
[401374146,1768163455604,-151.0,0.00017799,2]
[401374147,1768163455614,-151.0,0.00017799,2]
[401374148,1768163455624,-364.05538,0.00017985,2]
[401374149,1768163455634,-151.0,0.00017985,2]
[401374150,1768163455646,-364.05538,0.00017985,2]
[401374151,1768163455656,-1765.956881,0.00017985,2]
[401374152,1768163455666,-364.05538,0.00017985,2]
[401374153,1768163455676,-270356.22728656,0.00018,2]
[401374154,1768163455687,-297376.38916262,0.00018,2]
[401374155,1768163455717,-276.71058881,0.00018,2]
[401374156,1768163455728,-428.49782287,0.00018,2]
[401374157,1768163455739,-72203.0,0.00018,2]
[401374158,1768163455750,-515.75,0.00018,2]
[401374159,1768163455763,-479.81569335,0.00018,2]
[401374160,1768163455774,-538.09941,0.00018,2]
[401374161,1768163455916,-150.0,0.00016735,2]
[401374162,1768163455926,-160.46630744,0.00016735,2]
[401374163,1768163455936,-150.0,0.0001679,2]
[401374164,1768163455949,-200.0,0.00016845,2]
[401374165,1768163455959,-552.98238355,0.00017157,2]
[401374166,1768163455972,-1038.39988,0.00017157,2]
[401374167,1768163456083,-1000.0,0.00016712,2]
[401374168,1768163456092,-790.011,0.00016754,2]
[401374169,1768163456102,-398.84673645,0.00017157,2]
[401374170,1768163456111,-1765.956881,0.00017985,2]
[401374171,1768163456120,-565.311066,0.00017985,2]
[401374172,1768163456129,-6634.2390149,0.00018,2]
[401374173,1768163456158,-1765.956881,0.00017985,2]
[401374174,1768163456168,-565.311066,0.00017985,2]
[401374175,1768163456177,-2180.84153272,0.00018,2]
[401374176,1768163456191,-960.41312935,0.00018,2]
[401374177,1768163456202,-275.99999997,0.00018,2]
[401374178,1768163703318,169.62,0.00027397,120]
[401374180,1768163858980,219.08795,0.00027397,120]
[401374181,1768163871703,698.71,8.271e-05,2]
[401374182,1768163871912,306.3799,8.69e-05,2]
[401374183,1768163872252,392.3301,8.69e-05,2]
[401374184,1768163872308,698.71,9.108e-05,2]
[401374185,1768163872429,698.71,9.526e-05,2]
[401374186,1768163872724,698.71,9.945e-05,2]
[401374187,1768163872921,698.71,0.00010363,2]
[401374188,1768163873222,698.71,0.00010781,2]
[401374189,1768163873436,698.71,0.00011199,2]
[401374190,1768163873696,698.71,0.00011618,2]
[401374191,1768163874362,698.71,0.00012036,2]
[401374192,1768163874400,698.71,0.00012454,2]
[401374193,1768163874437,698.71,0.00012872,2]
[401374194,1768163874533,698.71,0.00013291,2]
[401374195,1768163874746,698.71,0.00013709,2]
[401374196,1768163875009,-367.0331,0.00013974,2]
[401374197,1768163875032,-495.81137759,0.00014127,2]
[401374198,1768163887644,-202.89862241,0.00014127,2]
[401374199,1768163887666,-108.99390969,0.00014336,2]
[401374200,1768163914010,712.444275,0.00010959,2]
[401374201,1768164002782,161.14,0.00027397,120]
[401374202,1768164006189,-268.0,0.00014336,2]
[401374203,1768164006212,-32.0,0.00014336,2]
[401374204,1768164155374,-300.02017686,0.00014073,2]
[401374205,1768164200939,-199.97982314,0.00014073,2]
[401374206,1768164200962,-140.28360845,0.00014205,2]
[401374207,1768164302959,153.08,0.00027397,120]
[401374208,1768164427118,-54.71639155,0.00014205,2]
[401374209,1768164427138,-195.0,0.00014429,2]
[401374210,1768164427159,-294.15914434,0.00014429,2]
[401374211,1768164427178,-250.0,0.00014441,2]
[401374212,1768164427199,-482.99719355,0.00014546,2]
[401374213,1768164435123,-215.71280645,0.00014546,2]
[401374214,1768164435145,-58.48741818,0.00014647,2]
[401374215,1768164446134,-191.51258182,0.00014647,2]
[401374216,1768164446158,-116.36649677,0.00014836,2]
[401374217,1768164452392,-133.63350323,0.00014836,2]
[401374218,1768164452412,-181.27063113,0.00014864,2]
[401374219,1768164452432,-698.71,0.00014964,2]
[401374220,1768164452453,-166.66,0.0001506,2]
[401374221,1768164452474,-1023.32856819,0.00015309,2]
[401374230,1768164632291,-276.0,0.00015209,2]
[401374231,1768164632300,-383.51910631,0.00015259,2]
[401374232,1768164632310,-1200.0,0.00015308,2]
[401374233,1768164632319,-300.0,0.00015309,2]
[401374234,1768164632329,-300.0,0.00015309,2]
[401374235,1768164632338,-300.0,0.00015309,2]
[401374236,1768164632348,-300.0,0.00015309,2]
[401374237,1768164632358,-299.99,0.0001531,2]
[401374238,1768164632368,-8218.15050727,0.0001531,2]
[401374239,1768164632379,-1781.83949273,0.0001531,2]
[401374240,1768164632389,-500.0,0.00015319,2]
[401374241,1768164632399,-166.66,0.00015377,2]
[401374242,1768164632408,-698.71,0.00015382,2]
[401374243,1768164632417,-216.67619173,0.00015525,2]
[401374244,1768164632426,-907.99108783,0.00015525,2]
[401374245,1768164632436,-1000000.0,0.00015525,2]
[401374246,1768164632445,-195.0,0.00015625,2]
[401374247,1768164632454,-798.35,0.00015642,2]
[401374248,1768164632464,-166.66,0.00015694,2]
[401374249,1768164632473,-1000.0,0.00015696,2]
[401374250,1768164632482,-1272.34,0.00015698,2]
[401374251,1768164632492,-1031.2,0.00015778,2]
[401374252,1768164632503,-3240.0,0.00015778,2]
[401374253,1768164632512,-999.0,0.00015782,3]
[401374254,1768164632521,-698.71,0.000158,2]
[401374255,1768164632531,-600.57148651,0.000159,2]
[401374256,1768164632540,-151.0,0.00015918,2]
[401374257,1768164632549,-151.0,0.00015928,2]
[401374258,1768164632558,-500.0,0.00015999,2]
[401374259,1768164632568,-500.0,0.00015999,2]
[401374260,1768164632578,-250.0,0.00016,2]
[401374261,1768164632587,-166.66,0.00016011,2]
[401374262,1768164632597,-1852.42,0.00016063,2]
[401374263,1768164632607,-259.59,0.00016068,2]
[401374264,1768164632616,-334.57272477,0.00016115,2]
[401374265,1768164632625,-9999.99,0.00016116,2]
[401374266,1768164632634,-150.0,0.000162,2]
[401374267,1768164632643,-150.0,0.000162,2]
[401374268,1768164632652,-150.0,0.000162,2]
[401374269,1768164632661,-150.0,0.000162,2]
[401374270,1768164632670,-150.0,0.000162,2]
[401374271,1768164632679,-150.4343184,0.000162,2]
[401374272,1768164632688,-150.0,0.000162,2]
[401374273,1768164632698,-150.00000001,0.000162,2]
[401374274,1768164632707,-178.176763,0.000162,2]
[401374275,1768164632716,-150.0,0.000162,2]
[401374276,1768164632724,-150.37867968,0.000162,2]
[401374277,1768164632733,-150.0,0.000162,2]
[401374278,1768164632743,-247.12115075,0.000162,2]
[401374279,1768164632751,-150.0,0.000162,2]
[401374280,1768164632761,-579.64,0.000162,2]
[401374281,1768164632770,-698.71,0.00016219,2]
[401374282,1768164632779,-600.57148651,0.0001622,2]
[401374283,1768164632789,-500.0,0.00016259,3]
[401374284,1768164632798,-166.66,0.00016328,2]
[401374285,1768164632808,-2690.1,0.00016402,2]
[401374286,1768164632821,-321.98485387,0.00016438,2]
[401374287,1768164632837,-178.01514613,0.00016438,2]
[401374288,1768164632848,-151.0,0.00016438,2]
[401374289,1768164632860,-232.71,0.00016454,2]
[401374290,1768164632869,-181.27063112,0.00016459,2]
[401374291,1768164632878,-579.64,0.00016474,2]
[401374292,1768164632888,-462.27391261,0.000165,2]
[401374293,1768164632909,-1794.72608739,0.000165,2]
[401374294,1768164632918,-409.69422253,0.00016518,2]
[401374295,1768164632955,-30.46669157,0.00016518,2]
[401374296,1768164632967,-1681.88080824,0.00016518,2]
[401374297,1768164638078,-34.20878646,0.00015924,2]
[401374298,1768164638090,-116.79121354,0.00015924,2]
[401374299,1768164638099,-151.0,0.00015927,2]
[401374300,1768164638109,-435.47827766,0.00016518,2]
[401374301,1768164638118,-347.45131612,0.00016554,2]
[401374302,1768164638129,-253.12017039,0.00016554,2]
[401374303,1768164638138,-149.67906266,0.00016623,2]
[401374304,1768164638149,-66.99712907,0.00016623,2]
[401374305,1768164638159,-166.66,0.00016645,2]
[401374306,1768164638168,-159.6,0.00016712,2]
[401374307,1768164638177,-250.0,0.0001673,2]
[401374308,1768164638186,-195.0,0.0001673,2]
[401374309,1768164638195,-33.38587093,0.0001673,2]
[401374310,1768164638233,-317.90518239,0.0001673,2]
[401374311,1768164638245,-248.70894668,0.0001673,2]
[401374312,1768164638254,-579.64,0.00016748,2]
[401374314,1768164638264,-420.0,0.0001675,2]
[401374316,1768164638274,-553.64373807,0.00016772,2]
[401374318,1768164638284,-578.20924308,0.00016772,2]
[401374320,1768164638293,-322.6107,0.00016772,2]
[401374322,1768164638302,-620.0,0.00016772,2]
[401374324,1768164638311,-998.0,0.00016772,2]
[401374325,1768164638320,-1000.0,0.00016772,2]
[401374327,1768164638329,-1000.0,0.00016772,2]
[401374330,1768164638340,-1000.0,0.00016772,2]
[401374331,1768164638350,-1000.0,0.00016772,2]
[401374334,1768164638359,-1000.0,0.00016772,2]
[401374335,1768164638370,-1000.0,0.00016772,2]
[401374338,1768164638379,-1000.0,0.00016772,2]
[401374339,1768164638388,-1000.0,0.00016772,2]
[401374341,1768164638397,-1000.0,0.00016772,2]
[401374344,1768164638407,-1000.0,0.00016772,2]
[401374345,1768164638417,-1000.0,0.00016772,2]
[401374348,1768164638426,-1000.0,0.00016772,2]
[401374349,1768164638436,-150.0,0.000168,2]
[401374351,1768164638445,-1680.0,0.00016833,2]
[401374353,1768164638454,-200.75185895,0.0001684,2]
[401374355,1768164638463,-600.57148651,0.00016888,2]
[401374356,1768164638473,-218.0,0.00016929,2]
[401374357,1768164638483,-1000.0,0.00016945,2]
[401374358,1768164638492,-1000.0,0.00016945,2]
[401374359,1768164638502,-557.36,0.00016945,2]
[401374360,1768164638512,-259.59,0.00016961,2]
[401374361,1768164638521,-50395.02,0.00016986,2]
[401374362,1768164638530,-293.0,0.00016988,2]
[401374363,1768164638539,-2400.0,0.00017,6]
[401374364,1768164638549,-800.0,0.00017,6]
[401374365,1768164638558,-579.64,0.00017022,2]
[401374366,1768164638568,-500.0,0.00017073,2]
[401374367,1768164638577,-169.26261672,0.00017073,2]
[401374369,1768164638587,-500.0,0.00017073,2]
[401374371,1768164638596,-500.0,0.00017073,2]
[401374373,1768164638606,-500.0,0.00017073,2]
[401374375,1768164638615,-500.0,0.00017073,2]
[401374377,1768164638624,-500.0,0.00017073,2]
[401374379,1768164638634,-500.0,0.00017073,2]
[401374381,1768164638643,-500.0,0.00017073,2]
[401374383,1768164638652,-439.76863979,0.00017073,2]
[401374385,1768164638662,-500.0,0.00017073,2]
[401374387,1768164638672,-500.0,0.00017073,2]
[401374389,1768164638681,-500.0,0.00017073,2]
[401374391,1768164638690,-500.0,0.00017073,2]
[401374393,1768164638699,-500.0,0.00017073,2]
[401374395,1768164638709,-150.0,0.000171,2]
[401374397,1768164638718,-150.0,0.000171,2]
[401374399,1768164638727,-150.0,0.000171,2]
[401374401,1768164638736,-150.0,0.000171,2]
[401374403,1768164638745,-4900.0,0.000171,6]
[401374405,1768164638754,-1600.0,0.000171,6]
[401374407,1768164638764,-234.2861563,0.00017113,2]
[401374409,1768164638774,-200.0,0.00017174,2]
[401374411,1768164638784,-293.0,0.0001718,2]
[401374413,1768164638794,-7300.0,0.000172,6]
[401374415,1768164638805,-2400.0,0.000172,6]
[401374417,1768164638817,-1863.63011459,0.00017204,2]
[401374419,1768164638827,-2690.1,0.00017222,2]
[401374421,1768164638836,-186.04952987,0.0001728,2]
[401374423,1768164638846,-193.63716908,0.0001728,2]
[401374425,1768164638857,-372.76901608,0.0001728,2]
[401374427,1768164638866,-173.05082172,0.0001728,2]
[401374429,1768164638876,-162.39788886,0.0001728,2]
[401374431,1768164638887,-1863.63011452,0.00017281,2]
[401374433,1768164638897,-579.68,0.00017296,2]
[401374435,1768164638905,-293.0,0.00017299,2]
[401374437,1768164638915,-9800.0,0.000173,6]
[401374439,1768164638925,-3200.0,0.000173,6]
[401374441,1768164638934,-2465.1,0.00017304,2]
[401374444,1768164638944,-574.12855637,0.0001732,2]
[401374445,1768164638954,-1863.63011452,0.00017359,2]
[401374448,1768164638965,-2465.1,0.00017367,2]
[401374450,1768164638975,-802.71396262,0.0001739,2]
[401374452,1768164638986,-150.0,0.000174,2]
[401374453,1768164638996,-1000.0,0.000174,2]
[401374455,1768164639006,-12300.0,0.000174,6]
[401374457,1768164639016,-4000.0,0.000174,6]
[401374459,1768164639025,-2465.1,0.00017431,2]
[401374461,1768164639034,-1863.63011452,0.00017436,2]
[401374463,1768164639044,-293.0,0.00017446,2]
[401374465,1768164639053,-158.9254365,0.00017446,2]
[401374467,1768164639063,-180.0,0.00017464,2]
[401374469,1768164639073,-2465.1,0.00017494,2]
[401374471,1768164639082,-2000.0,0.000175,2]
[401374473,1768164639092,-2400.0,0.000175,6]
[401374475,1768164639101,-800.0,0.000175,6]
[401374477,1768164639110,-1863.63011452,0.00017513,2]
[401374479,1768164639119,-180.0,0.00017531,2]
[401374481,1768164639128,-1073.5027,0.0001754,2]
[401374483,1768164639136,-2465.1,0.00017557,2]
[401374485,1768164639146,-1863.63011452,0.00017591,2]
[401374487,1768164639155,-1741.4494,0.00017596,2]
[401374489,1768164639163,-177.77885314,0.00017599,2]
[401374491,1768164639173,-8934.96900255,0.00017599,2]
[401374493,1768164639182,-371.35198806,0.00017599,2]
[401374495,1768164639191,-371.35198806,0.00017599,2]
[401374497,1768164639200,-1000.0,0.000176,2]
[401374499,1768164639209,-2400.0,0.000176,6]
[401374501,1768164639218,-800.0,0.000176,6]
[401374503,1768164639227,-2465.1,0.0001762,2]
[401374505,1768164639236,-1000.0,0.00017621,2]
[401374507,1768164639245,-501.45467854,0.00017621,2]
[401374509,1768164639254,-1000.0,0.00017621,2]
[401374511,1768164639263,-1000.0,0.00017621,2]
[401374513,1768164639273,-1003.68229257,0.00017621,2]
[401374515,1768164639283,-1000.0,0.00017621,2]
[401374517,1768164639292,-1000.0,0.00017621,2]
[401374519,1768164639301,-918.63063862,0.00017621,2]
[401374521,1768164639310,-501.80765562,0.00017621,2]
[401374523,1768164639319,-500.0,0.00017621,2]
[401374525,1768164639328,-335.02912149,0.00017621,2]
[401374527,1768164639338,-1000.0,0.00017621,2]
[401374529,1768164639347,-293.0,0.00017625,2]
[401374531,1768164639357,-8934.96900253,0.00017632,2]
[401374533,1768164639366,-3755.81126593,0.0001764,2]
[401374535,1768164639375,-371.35198806,0.00017642,2]
[401374537,1768164639385,-1000.0,0.00017658,2]
[401374539,1768164639394,-8934.96900253,0.00017666,2]
[401374541,1768164639403,-1863.63011452,0.00017668,2]
[401374543,1768164639412,-150.0,0.00017671,2]
[401374546,1768164639421,-212.52716562,0.00017671,2]
[401374548,1768164639431,-150.0,0.00017671,2]
[401374550,1768164639441,-155.85892198,0.00017671,2]
[401374552,1768164639450,-152.74964676,0.00017671,2]
[401374554,1768164639459,-167.2048683,0.00017671,2]
[401374556,1768164639469,-500.0,0.00017671,2]
[401374557,1768164639478,-233.35540299,0.00017671,2]
[401374560,1768164639487,-150.0,0.00017671,2]
[401374562,1768164639497,-500.0,0.00017671,2]
[401374564,1768164639506,-500.0,0.00017671,2]
[401374566,1768164639516,-2465.1,0.00017684,2]
[401374567,1768164639525,-371.35198806,0.00017685,2]
[401374569,1768164639535,-1155.247,0.00017692,2]
[401374571,1768164639544,-166.9455236,0.00017695,2]
[401374574,1768164639554,-1109.1708325,0.00017695,5]
[401374575,1768164639563,-500.0,0.00017695,2]
[401374577,1768164639572,-500.0,0.00017695,2]
[401374580,1768164639582,-500.0,0.00017695,2]
[401374582,1768164639592,-500.0,0.00017699,2]
[401374584,1768164639601,-8934.96900253,0.00017699,2]
[401374586,1768164639613,-2400.0,0.000177,6]
[401374588,1768164639622,-800.0,0.000177,6]
[401374590,1768164639631,-1000.0,0.00017719,2]
[401374592,1768164639640,-216.67619173,0.0001772,2]
[401374594,1768164639649,-150.0,0.00017726,2]
[401374596,1768164639658,-150.0,0.00017726,2]
[401374598,1768164639667,-500.0,0.00017726,2]
[401374600,1768164639676,-150.0,0.00017726,2]
[401374602,1768164639685,-500.0,0.00017726,2]
[401374604,1768164639694,-500.0,0.00017726,2]
[401374606,1768164639706,-1000.0,0.00017726,2]
[401374608,1768164639715,-371.35198806,0.00017728,2]
[401374610,1768164639724,-1000.0,0.00017731,2]
[401374612,1768164639734,-8934.96900253,0.00017733,2]
[401374614,1768164639743,-1863.63011452,0.00017745,2]
[401374616,1768164639752,-2465.1,0.00017747,2]
[401374618,1768164639762,-1031.2,0.0001775,2]
[401374620,1768164639771,-1000.0,0.00017753,2]
[401374622,1768164639781,-8934.96900253,0.00017766,2]
[401374624,1768164639791,-1000.0,0.00017771,2]
[401374626,1768164639800,-371.35198806,0.00017771,2]
[401374628,1768164639813,-1000.0,0.0001778,2]
[401374630,1768164639823,-200.0,0.00017781,2]
[401374632,1768164639832,-200.0,0.00017781,2]
[401374634,1768164639842,-500.0,0.00017781,2]
[401374636,1768164639851,-150.0,0.00017781,2]
[401374638,1768164639860,-500.0,0.00017781,2]
[401374640,1768164639870,-303.58556021,0.00017781,2]
[401374642,1768164639878,-8934.96900253,0.000178,2]
[401374644,1768164639889,-1000.0,0.000178,2]
[401374646,1768164639898,-2400.0,0.000178,6]
[401374648,1768164639907,-800.0,0.000178,6]
[401374650,1768164639915,-2465.1,0.0001781,2]
[401374652,1768164639924,-371.35198806,0.00017814,2]
[401374654,1768164639933,-1000.0,0.0001782,2]
[401374656,1768164639942,-1863.63011452,0.00017823,2]
[401374658,1768164639951,-2201.92484839,0.0001783,2]
[401374660,1768164639960,-8934.96900253,0.00017833,2]
[401374662,1768164639969,-500.0,0.00017835,2]
[401374664,1768164639978,-259.59,0.00017854,2]
[401374666,1768164639988,-200.0,0.00017855,2]
[401374668,1768164639997,-200.0,0.00017856,2]
[401374670,1768164640006,-200.0,0.00017856,2]
[401374673,1768164640015,-371.35198806,0.00017857,2]
[401374674,1768164640024,-25000.0,0.00017865,3]
[401374676,1768164640035,-180.0,0.00017866,2]
[401374679,1768164640046,-8934.96900253,0.00017867,2]
[401374681,1768164640055,-595.37131296,0.00017868,2]
[401374682,1768164640064,-1000.0,0.0001787,2]
[401374685,1768164640075,-2465.1,0.00017873,2]
[401374687,1768164640085,-25000.0,0.00017874,3]
[401374688,1768164640095,-1000.0,0.0001788,2]
[401374690,1768164640104,-25000.0,0.00017882,3]
[401374692,1768164640113,-295.1864425,0.0001789,2]
[401374694,1768164640123,-25000.0,0.00017891,3]
[401374696,1768164640132,-180.0,0.00017893,2]
[401374698,1768164640141,-1000.0,0.000179,2]
[401374700,1768164640150,-10000.0,0.000179,2]
[401374702,1768164640159,-312.41227174,0.000179,2]
[401374705,1768164640172,-916.60502421,0.000179,2]
[401374712,1768164640234,-141.87474681,0.000179,2]
[401374782,1768164640875,-293.9232899,0.000179,2]
[401374784,1768164640895,-198.81478186,0.000179,2]
[401374786,1768164640904,-177.77885313,0.000179,2]
[401374788,1768164640913,-2780.76598455,0.000179,3]
[401374791,1768164640924,-477.66581525,0.000179,3]
[401374842,1768164641488,-244.84474491,0.000179,3]
[401374845,1768164641503,-21496.72345529,0.000179,3]
[401374847,1768164641512,-3018.0,0.000179,6]
[401374849,1768164641521,-8934.96900253,0.000179,2]
[401374851,1768164641530,-1100.0,0.000179,6]
[401374853,1768164641539,-1005.64389081,0.000179,2]
[401374855,1768164641548,-2094.44971826,0.000179,2]
[401374857,1768164641557,-1005.64389071,0.000179,2]
[401374859,1768164641566,-1005.64389071,0.000179,2]
[401374861,1768164641575,-1005.64389071,0.000179,2]
[401374863,1768164641585,-1005.64389071,0.000179,2]
[401374865,1768164641593,-1005.64389071,0.000179,2]